[Event "Early-Titled-Tuesday-Blitz-March-12-2024"]
[Site "Chess.com"]
[Date "2024.03.12"]
[Round "2"]
[White "Defend1r"]
[Black "MikeWizard"]
[Result "1-0"]
[WhiteElo "2732"]
[BlackElo "2082"]
[TimeControl "180+1"]
[EndTime "8:13:53 PDT"]
[Termination "Defend1r won by checkmate"]

1. e4 {[%clk 0:03:00.9]} 1... d6 {[%clk 0:02:58.9]} 2. d4 {[%clk 0:03:00.8]}
2... Nf6 {[%clk 0:02:59]} 3. Nc3 {[%clk 0:03:00.6]} 3... Nbd7 {[%clk 0:02:58.1]}
4. Nf3 {[%clk 0:03:00.4]} 4... e5 {[%clk 0:02:57.9]} 5. Bc4 {[%clk 0:03:01]}
5... Be7 {[%clk 0:02:57.4]} 6. a4 {[%clk 0:03:00.7]} 6... c6 {[%clk 0:02:56.6]}
7. O-O {[%clk 0:02:59.2]} 7... h6 {[%clk 0:02:50.9]} 8. h3 {[%clk 0:02:58.8]}
8... Nf8 {[%clk 0:02:49.2]} 9. dxe5 {[%clk 0:02:53.7]} 9... dxe5 {[%clk
0:02:46.8]} 10. Nxe5 {[%clk 0:02:51.7]} 10... Be6 {[%clk 0:02:38.3]} 11. Qe2
{[%clk 0:02:45.1]} 11... Qc7 {[%clk 0:02:29.9]} 12. Bf4 {[%clk 0:02:43.6]} 12...
Bd6 {[%clk 0:02:30]} 13. Nxf7 {[%clk 0:02:38.8]} 13... Bxf7 {[%clk 0:01:51.9]}
14. e5 {[%clk 0:02:35.7]} 14... Bxc4 {[%clk 0:01:48.7]} 15. Qxc4 {[%clk
0:02:36.6]} 15... Bxe5 {[%clk 0:01:47.1]} 16. Bxe5 {[%clk 0:02:37.5]} 16... Qxe5
{[%clk 0:01:42.1]} 17. Rfe1 {[%clk 0:02:36.8]} 17... Qxe1+ {[%clk 0:01:29.6]}
18. Rxe1+ {[%clk 0:02:37.7]} 18... Kd7 {[%clk 0:01:26.6]} 19. Qd4+ {[%clk
0:02:31.8]} 19... Kc7 {[%clk 0:01:22.4]} 20. Re7+ {[%clk 0:02:29.3]} 20... N8d7
{[%clk 0:01:20.8]} 21. Ne4 {[%clk 0:02:29]} 21... Rad8 {[%clk 0:01:18]} 22. Nc5
{[%clk 0:02:29.1]} 22... Rhe8 {[%clk 0:01:08.2]} 23. Ne6+ {[%clk 0:02:26.1]}
23... Kc8 {[%clk 0:01:06.2]} 24. Qd6 {[%clk 0:02:25.7]} 24... Rxe7 {[%clk
0:01:03.2]} 25. Qc7# {[%clk 0:02:26.1]} 1-0

[Event "Early-Titled-Tuesday-Blitz-March-12-2024"]
[Site "Chess.com"]
[Date "2024.03.12"]
[Round "2"]
[White "UnTucopalaTimba"]
[Black "MidnightFox"]
[Result "0-1"]
[WhiteElo "1985"]
[BlackElo "2480"]
[TimeControl "180+1"]
[EndTime "8:14:29 PDT"]
[Termination "MidnightFox won by resignation"]

1. e4 {[%clk 0:03:00.2]} 1... c5 {[%clk 0:02:52.6]} 2. Nf3 {[%clk 0:02:59.5]}
2... d6 {[%clk 0:02:53]} 3. Bb5+ {[%clk 0:02:57.8]} 3... Nd7 {[%clk 0:02:51.5]}
4. d4 {[%clk 0:02:55.4]} 4... Nf6 {[%clk 0:02:44.8]} 5. e5 {[%clk 0:02:33.3]}
5... Qa5+ {[%clk 0:02:41.3]} 6. Nc3 {[%clk 0:02:32.9]} 6... Ne4 {[%clk 0:02:40]}
7. Bxd7+ {[%clk 0:02:31.2]} 7... Bxd7 {[%clk 0:02:39.6]} 8. Qd3 {[%clk
0:02:30.1]} 8... Nxc3 {[%clk 0:02:38.7]} 9. Qxc3 {[%clk 0:02:29.4]} 9... Qxc3+
{[%clk 0:02:38.3]} 10. bxc3 {[%clk 0:02:30.3]} 10... e6 {[%clk 0:02:37.9]} 11.
O-O {[%clk 0:02:19.2]} 11... Bc6 {[%clk 0:02:37.2]} 12. Nd2 {[%clk 0:02:11.5]}
12... O-O-O {[%clk 0:02:34.3]} 13. f4 {[%clk 0:01:57]} 13... Be7 {[%clk
0:02:28.3]} 14. a4 {[%clk 0:01:52.8]} 14... cxd4 {[%clk 0:02:08.9]} 15. cxd4
{[%clk 0:01:45.2]} 15... dxe5 {[%clk 0:02:09.3]} 16. dxe5 {[%clk 0:01:37.9]}
16... Rd4 {[%clk 0:02:03]} 17. Nb3 {[%clk 0:01:32.7]} 17... Rc4 {[%clk
0:02:01.8]} 18. Be3 {[%clk 0:01:15.7]} 18... Rxc2 {[%clk 0:02:00.9]} 19. Rf2
{[%clk 0:01:06.7]} 19... Rc3 {[%clk 0:01:59.4]} 20. Na5 {[%clk 0:00:56.1]} 20...
Rxe3 {[%clk 0:01:56.3]} 21. Nxc6 {[%clk 0:00:56.1]} 21... bxc6 {[%clk
0:01:57.2]} 0-1

[Event "Early-Titled-Tuesday-Blitz-March-12-2024"]
[Site "Chess.com"]
[Date "2024.03.12"]
[Round "2"]
[White "albi1999"]
[Black "Vladimir_Zakhartsov"]
[Result "0-1"]
[WhiteElo "2571"]
[BlackElo "2857"]
[TimeControl "180+1"]
[EndTime "8:15:13 PDT"]
[Termination "Vladimir_Zakhartsov won by resignation"]

1. Nf3 {[%clk 0:02:53.9]} 1... c5 {[%clk 0:02:59.5]} 2. c4 {[%clk 0:02:47.1]}
2... Nc6 {[%clk 0:02:58.4]} 3. e3 {[%clk 0:02:43.4]} 3... Nf6 {[%clk 0:02:56.2]}
4. d4 {[%clk 0:02:42.4]} 4... cxd4 {[%clk 0:02:47.6]} 5. exd4 {[%clk 0:02:43.3]}
5... d5 {[%clk 0:02:48.2]} 6. Nc3 {[%clk 0:02:42.3]} 6... e6 {[%clk 0:02:41.5]}
7. cxd5 {[%clk 0:02:41.9]} 7... Nxd5 {[%clk 0:02:40.2]} 8. Bd3 {[%clk
0:02:40.8]} 8... Bd6 {[%clk 0:02:37.8]} 9. O-O {[%clk 0:02:39.6]} 9... O-O
{[%clk 0:02:38]} 10. a3 {[%clk 0:02:32.4]} 10... Nxc3 {[%clk 0:02:30.2]} 11.
bxc3 {[%clk 0:02:32]} 11... h6 {[%clk 0:02:30.7]} 12. Qe2 {[%clk 0:02:31.5]}
12... Re8 {[%clk 0:02:19.4]} 13. Rd1 {[%clk 0:02:12.5]} 13... Qc7 {[%clk
0:02:06.2]} 14. Qe4 {[%clk 0:02:03.7]} 14... f5 {[%clk 0:02:06.2]} 15. Qh4
{[%clk 0:02:03.6]} 15... Bd7 {[%clk 0:01:44.3]} 16. c4 {[%clk 0:01:56.8]} 16...
b6 {[%clk 0:01:40.3]} 17. Bb2 {[%clk 0:01:53.6]} 17... Be7 {[%clk 0:01:38.4]}
18. Qh5 {[%clk 0:01:47.9]} 18... Bf6 {[%clk 0:01:38.7]} 19. Rac1 {[%clk
0:01:45.3]} 19... Rad8 {[%clk 0:01:28.8]} 20. Ba1 {[%clk 0:01:44.1]} 20... Qf4
{[%clk 0:01:27.7]} 21. g3 {[%clk 0:01:40]} 21... Qg4 {[%clk 0:01:25.6]} 22. Qxg4
{[%clk 0:01:31.5]} 22... fxg4 {[%clk 0:01:26.5]} 23. Ne5 {[%clk 0:01:26.6]}
23... Nxe5 {[%clk 0:01:25]} 24. dxe5 {[%clk 0:01:27.5]} 24... Bg5 {[%clk
0:01:25.6]} 25. Bg6 {[%clk 0:01:21.4]} 25... Rf8 {[%clk 0:01:01.5]} 26. Rd4
{[%clk 0:01:20.2]} 26... Bxc1 {[%clk 0:01:00.4]} 0-1

[Event "Early-Titled-Tuesday-Blitz-March-12-2024"]
[Site "Chess.com"]
[Date "2024.03.12"]
[Round "2"]
[White "chucksterf10"]
[Black "crosky"]
[Result "0-1"]
[WhiteElo "2536"]
[BlackElo "2324"]
[TimeControl "180+1"]
[EndTime "8:15:17 PDT"]
[Termination "crosky won by checkmate"]

1. b3 {[%clk 0:02:59.9]} 1... Nf6 {[%clk 0:02:54.9]} 2. Bb2 {[%clk 0:03:00.8]}
2... d5 {[%clk 0:02:55.4]} 3. Nf3 {[%clk 0:02:59.8]} 3... Bf5 {[%clk 0:02:55.4]}
4. e3 {[%clk 0:03:00.4]} 4... e6 {[%clk 0:02:50.1]} 5. Nh4 {[%clk 0:02:59.3]}
5... Bg4 {[%clk 0:02:37.8]} 6. f3 {[%clk 0:02:59.5]} 6... Bh5 {[%clk 0:02:35]}
7. g3 {[%clk 0:02:54.1]} 7... Nbd7 {[%clk 0:02:01.5]} 8. d4 {[%clk 0:02:52.3]}
8... Be7 {[%clk 0:01:54]} 9. Ng2 {[%clk 0:02:47.7]} 9... O-O {[%clk 0:01:43.5]}
10. Nf4 {[%clk 0:02:47.7]} 10... Bg6 {[%clk 0:01:43.7]} 11. h4 {[%clk 0:02:48]}
11... h6 {[%clk 0:01:28.2]} 12. Nxg6 {[%clk 0:02:46.8]} 12... fxg6 {[%clk
0:01:29.1]} 13. Bd3 {[%clk 0:02:46.9]} 13... Qe8 {[%clk 0:01:22]} 14. c4 {[%clk
0:02:46.7]} 14... Bd6 {[%clk 0:01:21.7]} 15. f4 {[%clk 0:02:44.8]} 15... c5
{[%clk 0:01:19.4]} 16. Qc2 {[%clk 0:02:43.1]} 16... Ng4 {[%clk 0:00:51.8]} 17.
Ke2 {[%clk 0:02:34.5]} 17... cxd4 {[%clk 0:00:43.3]} 18. exd4 {[%clk 0:02:31.6]}
18... e5 {[%clk 0:00:38.2]} 19. Bxg6 {[%clk 0:02:30.6]} 19... Qe7 {[%clk
0:00:29.6]} 20. Re1 {[%clk 0:02:22.8]} 20... exf4+ {[%clk 0:00:24.4]} 21. Kd2
{[%clk 0:02:17.3]} 21... Ne3 {[%clk 0:00:18.8]} 22. Qd3 {[%clk 0:02:09.4]} 22...
Nf6 {[%clk 0:00:13.6]} 23. gxf4 {[%clk 0:02:07.5]} 23... Bxf4 {[%clk 0:00:14.5]}
24. Kc3 {[%clk 0:02:01.9]} 24... dxc4 {[%clk 0:00:12.5]} 25. bxc4 {[%clk
0:02:02.2]} 25... Rac8 {[%clk 0:00:12]} 26. Nd2 {[%clk 0:02:01.6]} 26... Nfd5+
{[%clk 0:00:09.3]} 27. Kb3 {[%clk 0:02:01.3]} 27... Qb4# {[%clk 0:00:10]} 0-1

[Event "Early-Titled-Tuesday-Blitz-March-12-2024"]
[Site "Chess.com"]
[Date "2024.03.12"]
[Round "2"]
[White "BillCoe"]
[Black "zajka-molotok"]
[Result "0-1"]
[WhiteElo "2153"]
[BlackElo "2508"]
[TimeControl "180+1"]
[EndTime "8:15:32 PDT"]
[Termination "zajka-molotok won by checkmate"]

1. e4 {[%clk 0:02:58.9]} 1... c5 {[%clk 0:02:59.5]} 2. Nf3 {[%clk 0:02:58]} 2...
Nc6 {[%clk 0:02:59.6]} 3. Bb5 {[%clk 0:02:57.6]} 3... g6 {[%clk 0:02:59]} 4. O-O
{[%clk 0:02:56.7]} 4... Bg7 {[%clk 0:02:58.1]} 5. Re1 {[%clk 0:02:56.6]} 5... e5
{[%clk 0:02:57.7]} 6. c3 {[%clk 0:02:55.7]} 6... Nge7 {[%clk 0:02:57]} 7. a4
{[%clk 0:02:48.1]} 7... O-O {[%clk 0:02:55.9]} 8. h3 {[%clk 0:02:47.5]} 8... d5
{[%clk 0:02:51.2]} 9. exd5 {[%clk 0:02:46.9]} 9... Qxd5 {[%clk 0:02:52.1]} 10.
d3 {[%clk 0:02:39.8]} 10... Bf5 {[%clk 0:02:50.9]} 11. Bc4 {[%clk 0:02:35.8]}
11... Qd6 {[%clk 0:02:49.3]} 12. Qe2 {[%clk 0:02:35.4]} 12... Rad8 {[%clk
0:02:47.3]} 13. Be3 {[%clk 0:02:27.6]} 13... b6 {[%clk 0:02:41.1]} 14. Na3
{[%clk 0:02:27.2]} 14... Bxd3 {[%clk 0:02:39.3]} 15. Bxd3 {[%clk 0:02:19]} 15...
Qxd3 {[%clk 0:02:40.2]} 16. Qxd3 {[%clk 0:02:11.3]} 16... Rxd3 {[%clk
0:02:41.1]} 17. Nb5 {[%clk 0:02:07.1]} 17... Rfd8 {[%clk 0:02:37.9]} 18. Kf1
{[%clk 0:02:00.1]} 18... a6 {[%clk 0:02:34.8]} 19. Nc7 {[%clk 0:01:56]} 19... a5
{[%clk 0:02:29.4]} 20. Ke2 {[%clk 0:01:45.3]} 20... e4 {[%clk 0:02:28.3]} 21.
Ng1 {[%clk 0:01:40.1]} 21... f5 {[%clk 0:02:26.8]} 22. Bg5 {[%clk 0:01:36.1]}
22... R8d7 {[%clk 0:02:23.9]} 23. Nb5 {[%clk 0:01:34.9]} 23... Nd5 {[%clk
0:02:18]} 24. Kf1 {[%clk 0:01:31.4]} 24... h6 {[%clk 0:02:16.3]} 25. Be3 {[%clk
0:01:22.7]} 25... Ne5 {[%clk 0:02:12]} 26. h4 {[%clk 0:01:15.6]} 26... Nc4
{[%clk 0:02:09.5]} 27. Bc1 {[%clk 0:01:08.4]} 27... Nf6 {[%clk 0:01:58.6]} 28.
Ne2 {[%clk 0:01:07.8]} 28... Rd1 {[%clk 0:01:56.2]} 29. Be3 {[%clk 0:01:02.6]}
29... Rxa1 {[%clk 0:01:54]} 30. Rxa1 {[%clk 0:01:02.3]} 30... Nxb2 {[%clk
0:01:53.4]} 31. Nf4 {[%clk 0:00:59.9]} 31... Kf7 {[%clk 0:01:50.9]} 32. Rb1
{[%clk 0:00:56.4]} 32... Nxa4 {[%clk 0:01:49.4]} 33. c4 {[%clk 0:00:55.5]} 33...
g5 {[%clk 0:01:41.6]} 34. Ne2 {[%clk 0:00:51.6]} 34... f4 {[%clk 0:01:39]} 35.
Bc1 {[%clk 0:00:51.6]} 35... Rd1# {[%clk 0:01:36]} 0-1

[Event "Early-Titled-Tuesday-Blitz-March-12-2024"]
[Site "Chess.com"]
[Date "2024.03.12"]
[Round "2"]
[White "BilodeauA"]
[Black "BilicVladimir"]
[Result "1-0"]
[WhiteElo "2982"]
[BlackElo "2660"]
[TimeControl "180+1"]
[EndTime "8:15:36 PDT"]
[Termination "BilodeauA won by resignation"]

1. e4 {[%clk 0:03:00.9]} 1... c6 {[%clk 0:02:59.9]} 2. d4 {[%clk 0:03:00.4]}
2... d5 {[%clk 0:03:00.8]} 3. e5 {[%clk 0:03:01.2]} 3... Bf5 {[%clk 0:02:59.8]}
4. Nf3 {[%clk 0:03:01.3]} 4... e6 {[%clk 0:02:59.4]} 5. Be2 {[%clk 0:03:01.8]}
5... Nd7 {[%clk 0:02:59.3]} 6. Nbd2 {[%clk 0:03:01.9]} 6... Ne7 {[%clk
0:02:59.6]} 7. O-O {[%clk 0:03:01.7]} 7... Rc8 {[%clk 0:02:57.1]} 8. Nb3 {[%clk
0:02:58.8]} 8... Bg4 {[%clk 0:02:55.8]} 9. Ne1 {[%clk 0:02:49.8]} 9... Bxe2
{[%clk 0:02:53.4]} 10. Qxe2 {[%clk 0:02:50.7]} 10... Nf5 {[%clk 0:02:50.6]} 11.
Nd3 {[%clk 0:02:50.6]} 11... Be7 {[%clk 0:02:48.8]} 12. g4 {[%clk 0:02:50.9]}
12... Nh4 {[%clk 0:02:46.9]} 13. f4 {[%clk 0:02:50.3]} 13... h5 {[%clk
0:02:44.9]} 14. f5 {[%clk 0:02:43.4]} 14... c5 {[%clk 0:02:29.4]} 15. fxe6
{[%clk 0:02:39.4]} 15... fxe6 {[%clk 0:02:26.8]} 16. dxc5 {[%clk 0:02:36.4]}
16... Nxc5 {[%clk 0:02:25.7]} 17. Ndxc5 {[%clk 0:02:21.8]} 17... Bxc5+ {[%clk
0:02:25.1]} 18. Kh1 {[%clk 0:02:20.9]} 18... hxg4 {[%clk 0:02:15.9]} 19. Qxg4
{[%clk 0:02:16.7]} 19... Nf5 {[%clk 0:02:14.2]} 20. Qg6+ {[%clk 0:02:01.8]}
20... Kd7 {[%clk 0:02:09.3]} 21. Rxf5 {[%clk 0:01:22.9]} 21... exf5 {[%clk
0:02:08.2]} 22. Bg5 {[%clk 0:01:18]} 22... Qe8 {[%clk 0:01:56.2]} 23. Nxc5+
{[%clk 0:01:17.5]} 23... Rxc5 {[%clk 0:01:49.9]} 24. Qd6+ {[%clk 0:01:17.3]}
24... Kc8 {[%clk 0:01:47.4]} 25. Qxc5+ {[%clk 0:01:17.4]} 25... Qc6 {[%clk
0:01:47.9]} 26. Qxc6+ {[%clk 0:01:13.9]} 26... bxc6 {[%clk 0:01:48.2]} 27. Be3
{[%clk 0:01:13.6]} 27... Kd7 {[%clk 0:01:44.6]} 28. Rg1 {[%clk 0:01:13.8]} 28...
Ke6 {[%clk 0:01:44.2]} 29. Rxg7 {[%clk 0:01:09.1]} 29... Kxe5 {[%clk 0:01:44.1]}
30. Re7+ {[%clk 0:01:06.1]} 30... Kd6 {[%clk 0:01:43.7]} 31. Rxa7 {[%clk
0:01:06.3]} 31... Re8 {[%clk 0:01:43.7]} 32. Bf4+ {[%clk 0:01:06.3]} 32... Kc5
{[%clk 0:01:43.4]} 33. Ra3 {[%clk 0:00:52.8]} 33... Re2 {[%clk 0:01:42.2]} 34.
Re3 {[%clk 0:00:47.6]} 34... Rxc2 {[%clk 0:01:39]} 35. Rc3+ {[%clk 0:00:45.6]}
35... Rxc3 {[%clk 0:01:38.7]} 36. bxc3 {[%clk 0:00:46.5]} 36... Kc4 {[%clk
0:01:39.3]} 37. h4 {[%clk 0:00:46]} 37... Kxc3 {[%clk 0:01:39.3]} 38. h5 {[%clk
0:00:46.5]} 38... d4 {[%clk 0:01:39.8]} 39. h6 {[%clk 0:00:46.9]} 39... d3
{[%clk 0:01:40.4]} 40. h7 {[%clk 0:00:47.5]} 1-0

[Event "Early-Titled-Tuesday-Blitz-March-12-2024"]
[Site "Chess.com"]
[Date "2024.03.12"]
[Round "2"]
[White "Danny_Billiards"]
[Black "Marcin"]
[Result "1-0"]
[WhiteElo "2796"]
[BlackElo "2496"]
[TimeControl "180+1"]
[EndTime "8:15:37 PDT"]
[Termination "Danny_Billiards won by resignation"]

1. d4 {[%clk 0:02:55]} 1... Nf6 {[%clk 0:02:58.7]} 2. Nc3 {[%clk 0:02:55.3]}
2... d5 {[%clk 0:02:58.6]} 3. Bf4 {[%clk 0:02:55.6]} 3... a6 {[%clk 0:02:58.9]}
4. e3 {[%clk 0:02:54.9]} 4... e6 {[%clk 0:02:53.5]} 5. g4 {[%clk 0:02:54.8]}
5... Bb4 {[%clk 0:02:51.5]} 6. Ne2 {[%clk 0:02:53.9]} 6... Ne4 {[%clk
0:02:50.1]} 7. a3 {[%clk 0:02:52.4]} 7... Qh4 {[%clk 0:02:31.8]} 8. Bg3 {[%clk
0:02:32]} 8... Nxg3 {[%clk 0:02:29.5]} 9. fxg3 {[%clk 0:02:30.6]} 9... Bxc3+
{[%clk 0:02:29.3]} 10. Nxc3 {[%clk 0:02:31.5]} 10... Qg5 {[%clk 0:02:26.1]} 11.
Qf3 {[%clk 0:02:31.4]} 11... O-O {[%clk 0:02:25.1]} 12. h4 {[%clk 0:02:30.9]}
12... Qe7 {[%clk 0:02:25.1]} 13. Bd3 {[%clk 0:02:26.5]} 13... c5 {[%clk
0:02:25.2]} 14. dxc5 {[%clk 0:02:23.7]} 14... Qxc5 {[%clk 0:02:26.1]} 15. g5
{[%clk 0:02:17.4]} 15... Nc6 {[%clk 0:02:22.6]} 16. O-O-O {[%clk 0:02:11.1]}
16... Ne5 {[%clk 0:02:17.4]} 17. Qf4 {[%clk 0:02:10.5]} 17... Nxd3+ {[%clk
0:02:15.7]} 18. Rxd3 {[%clk 0:02:11.4]} 18... b5 {[%clk 0:02:13.3]} 19. h5
{[%clk 0:02:07]} 19... Bb7 {[%clk 0:02:11.4]} 20. h6 {[%clk 0:02:05.2]} 20... d4
{[%clk 0:01:56.5]} 21. exd4 {[%clk 0:01:59.7]} 21... Qf5 {[%clk 0:01:53]} 22.
Qxf5 {[%clk 0:01:56.8]} 22... exf5 {[%clk 0:01:53.9]} 23. Rf1 {[%clk 0:01:56.9]}
23... g6 {[%clk 0:01:53.8]} 24. Re1 {[%clk 0:01:50.4]} 24... Rfe8 {[%clk
0:01:53.9]} 25. Rde3 {[%clk 0:01:50.5]} 25... Rxe3 {[%clk 0:01:54.1]} 26. Rxe3
{[%clk 0:01:51.4]} 26... Kf8 {[%clk 0:01:54.8]} 27. Ne2 {[%clk 0:01:43.7]} 27...
Rd8 {[%clk 0:01:44.6]} 28. c3 {[%clk 0:01:43.7]} 28... Be4 {[%clk 0:01:41.1]}
29. g4 {[%clk 0:01:35.6]} 29... Re8 {[%clk 0:01:16.1]} 30. gxf5 {[%clk
0:01:31.4]} 30... Bxf5 {[%clk 0:01:09.7]} 31. Kd2 {[%clk 0:01:26.4]} 31... Rd8
{[%clk 0:01:07.4]} 32. Ng3 {[%clk 0:01:24.1]} 32... Bb1 {[%clk 0:01:03.8]} 33.
Re1 {[%clk 0:01:23.9]} 33... Ba2 {[%clk 0:01:03.4]} 34. Ne4 {[%clk 0:01:24]}
34... Re8 {[%clk 0:00:58.7]} 35. Nf6 {[%clk 0:01:22.3]} 35... Rxe1 {[%clk
0:00:58.9]} 36. Kxe1 {[%clk 0:01:23.2]} 36... Ke7 {[%clk 0:00:59.6]} 37. Nxh7
{[%clk 0:01:23.2]} 37... Ke6 {[%clk 0:00:59.9]} 38. Nf6 {[%clk 0:01:23.2]} 1-0

[Event "Early-Titled-Tuesday-Blitz-March-12-2024"]
[Site "Chess.com"]
[Date "2024.03.12"]
[Round "2"]
[White "AlmasRakhmatullaev"]
[Black "Langusto"]
[Result "1-0"]
[WhiteElo "2815"]
[BlackElo "2515"]
[TimeControl "180+1"]
[EndTime "8:15:39 PDT"]
[Termination "AlmasRakhmatullaev won by resignation"]

1. e4 {[%clk 0:03:00.2]} 1... e5 {[%clk 0:02:59.7]} 2. Nf3 {[%clk 0:03:00.1]}
2... Nc6 {[%clk 0:03:00.3]} 3. Bc4 {[%clk 0:03:00.1]} 3... Nf6 {[%clk
0:02:59.2]} 4. Ng5 {[%clk 0:03:00.1]} 4... d5 {[%clk 0:02:58.3]} 5. exd5 {[%clk
0:03:01]} 5... Na5 {[%clk 0:02:57.7]} 6. Bb5+ {[%clk 0:03:01]} 6... c6 {[%clk
0:02:58.2]} 7. dxc6 {[%clk 0:03:01.2]} 7... bxc6 {[%clk 0:02:58.7]} 8. Bd3
{[%clk 0:03:01.8]} 8... Nd5 {[%clk 0:02:58.2]} 9. Nf3 {[%clk 0:03:02]} 9... Bd6
{[%clk 0:02:58.8]} 10. O-O {[%clk 0:03:01.8]} 10... O-O {[%clk 0:02:59.4]} 11.
Re1 {[%clk 0:03:02.4]} 11... Qc7 {[%clk 0:03:00]} 12. c4 {[%clk 0:02:55.7]}
12... Nb4 {[%clk 0:02:59.5]} 13. Bf1 {[%clk 0:02:52.6]} 13... c5 {[%clk
0:02:59.8]} 14. Nc3 {[%clk 0:02:48.9]} 14... a6 {[%clk 0:03:00.2]} 15. a3 {[%clk
0:02:48.2]} 15... Nbc6 {[%clk 0:03:00.2]} 16. Nd5 {[%clk 0:02:47.6]} 16... Qd8
{[%clk 0:02:56.2]} 17. h3 {[%clk 0:02:39.4]} 17... f5 {[%clk 0:02:16.9]} 18. d3
{[%clk 0:02:37]} 18... Rb8 {[%clk 0:02:07]} 19. Bg5 {[%clk 0:02:23.3]} 19... Qd7
{[%clk 0:02:05.6]} 20. b4 {[%clk 0:02:16.2]} 20... Nb7 {[%clk 0:01:58.2]} 21.
Rb1 {[%clk 0:02:03.3]} 21... h6 {[%clk 0:01:46.5]} 22. Bd2 {[%clk 0:01:48.5]}
22... cxb4 {[%clk 0:01:27.2]} 23. axb4 {[%clk 0:01:46.7]} 23... Qf7 {[%clk
0:01:19.1]} 24. Bc3 {[%clk 0:01:34.9]} 24... e4 {[%clk 0:01:10.7]} 25. dxe4
{[%clk 0:01:35]} 25... fxe4 {[%clk 0:01:11.6]} 26. Rxe4 {[%clk 0:01:35.6]} 26...
Bf5 {[%clk 0:01:11.5]} 27. Bd3 {[%clk 0:01:35.9]} 27... Bxe4 {[%clk 0:01:04.4]}
28. Bxe4 {[%clk 0:01:36.8]} 28... Rbe8 {[%clk 0:01:04.4]} 29. Nf6+ {[%clk
0:01:35.3]} 29... gxf6 {[%clk 0:00:53.2]} 30. Bxc6 {[%clk 0:01:34.9]} 1-0

[Event "Early-Titled-Tuesday-Blitz-March-12-2024"]
[Site "Chess.com"]
[Date "2024.03.12"]
[Round "2"]
[White "vasblesk"]
[Black "IsaqueGoncalvesSanto"]
[Result "1-0"]
[WhiteElo "2725"]
[BlackElo "1810"]
[TimeControl "180+1"]
[EndTime "8:15:54 PDT"]
[Termination "vasblesk won by resignation"]

1. d4 {[%clk 0:03:00.9]} 1... d5 {[%clk 0:02:57.2]} 2. c4 {[%clk 0:03:01.2]}
2... c6 {[%clk 0:02:56.7]} 3. Nf3 {[%clk 0:03:01.6]} 3... e6 {[%clk 0:02:56.5]}
4. g3 {[%clk 0:02:59.7]} 4... dxc4 {[%clk 0:02:55.1]} 5. Bg2 {[%clk 0:03:00]}
5... Bb4+ {[%clk 0:02:53.3]} 6. Nc3 {[%clk 0:02:55.2]} 6... Nf6 {[%clk
0:02:51.1]} 7. Ne5 {[%clk 0:02:53]} 7... Nd5 {[%clk 0:02:48]} 8. O-O {[%clk
0:02:52.1]} 8... Bxc3 {[%clk 0:02:17.7]} 9. bxc3 {[%clk 0:02:51.1]} 9... b5
{[%clk 0:02:13.2]} 10. e4 {[%clk 0:02:33.9]} 10... Nxc3 {[%clk 0:02:08.2]} 11.
Qf3 {[%clk 0:02:33.5]} 11... f6 {[%clk 0:01:56.9]} 12. Qh5+ {[%clk 0:02:24.2]}
12... g6 {[%clk 0:01:51.8]} 13. Nxg6 {[%clk 0:02:24]} 13... hxg6 {[%clk
0:01:52.1]} 14. Qxh8+ {[%clk 0:02:03.1]} 14... Kd7 {[%clk 0:01:51.9]} 15. Qg7+
{[%clk 0:01:58.5]} 15... Qe7 {[%clk 0:01:48.6]} 16. Qxg6 {[%clk 0:01:58.6]}
16... Ne2+ {[%clk 0:01:36.4]} 17. Kh1 {[%clk 0:01:58.3]} 17... Nxd4 {[%clk
0:01:36.5]} 18. Rd1 {[%clk 0:01:56.4]} 18... c5 {[%clk 0:01:27.4]} 19. e5 {[%clk
0:01:54]} 19... Nc6 {[%clk 0:01:21.8]} 20. exf6 {[%clk 0:01:48.5]} 20... Qf8
{[%clk 0:01:14.9]} 21. Qg7+ {[%clk 0:01:47.3]} 21... Qxg7 {[%clk 0:01:13.4]} 22.
fxg7 {[%clk 0:01:48.2]} 22... Bb7 {[%clk 0:01:13.3]} 23. Bg5 {[%clk 0:01:38.8]}
23... Rg8 {[%clk 0:01:12.1]} 24. Bf6 {[%clk 0:01:38.4]} 24... Ke8 {[%clk
0:01:03.4]} 25. g4 {[%clk 0:01:38.1]} 25... Kf7 {[%clk 0:01:03.4]} 26. g5 {[%clk
0:01:38.5]} 26... Bc8 {[%clk 0:00:53.4]} 27. h4 {[%clk 0:01:34.2]} 27... Ne7
{[%clk 0:00:48.1]} 28. h5 {[%clk 0:01:33.7]} 28... Nef5 {[%clk 0:00:46.8]} 29.
h6 {[%clk 0:01:33]} 29... Kg6 {[%clk 0:00:41]} 30. Be4 {[%clk 0:01:27.4]} 30...
Bd7 {[%clk 0:00:35.1]} 31. Kg2 {[%clk 0:01:26.2]} 31... Nc6 {[%clk 0:00:32.6]}
32. Rxd7 {[%clk 0:01:25.3]} 32... Ne5 {[%clk 0:00:30.2]} 33. Bxe5 {[%clk
0:01:24.9]} 1-0